bitfinex-derivatives/quotes_ETHF0:USTF0_20241104
["timestamp","ask_amount","ask_price","bid_price","bid_amount"]
[1730736420930,2.00237,2442.1,2441.7,3.2078]
[1730736421232,2.00237,2442.1,2441.7,3.61753]
[1730736421233,0.40973,2441.8,2441.7,3.61753]
[1730736421429,2.00237,2442.1,2441.7,3.61753]
[1730736421637,0.40971,2441.9,2441.7,3.61753]
[1730736421829,0.40971,2441.9,2441.8,0.40971]
[1730736422029,0.40971,2441.8,2441.7,3.61752]
[1730736422238,0.40971,2441.8,2441.7,3.2078]
[1730736422443,0.4097,2441.9,2441.7,3.2078]
[1730736422642,0.40971,2441.8,2441.7,3.61752]
[1730736423341,0.40971,2441.9,2441.8,0.40971]
[1730736423543,2.0698,2442.2,2441.7,3.2078]
[1730736423544,1.0136,2442.2,2441.7,3.2078]
[1730736423745,0.40971,2441.9,2441.8,0.40971]
[1730736424043,0.40969,2442.0,2441.9,0.40969]
[1730736424439,0.40968,2442.1,2442.0,0.40967]
[1730736424735,0.40968,2442.0,2441.9,0.40968]
[1730736424937,2.0259,2442.2,2441.7,4.2724]
[1730736425141,2.0259,2442.2,2441.9,0.40969]
[1730736425142,0.40969,2442.0,2441.9,0.40969]
[1730736425943,0.40967,2442.1,2442.0,0.40967]
[1730736426145,2.03642,2442.2,2441.7,5.292]
[1730736426359,0.40971,2441.8,2441.7,3.2078]
[1730736426647,0.40971,2441.8,2441.7,3.61753]
[1730736426841,1.0123,2442.2,2441.9,0.40969]
[1730736427049,0.40969,2442.0,2441.9,0.40969]
[1730736427544,0.4097,2441.9,2441.6,4.2063]
[1730736427750,0.40969,2442.0,2441.6,5.23067]
[1730736428049,2.03642,2442.2,2441.7,1.02433]
[1730736428050,1.0123,2442.2,2441.7,1.02433]
[1730736428241,0.4097,2441.9,2441.8,1.41431]
[1730736428546,0.40972,2441.8,2441.7,0.40972]
[1730736428753,4.2201,2442.2,2441.6,3.2078]
[1730736429051,0.40973,2441.7,2441.6,3.2078]
[1730736429451,4.50493,2441.7,2441.6,3.2078]
[1730736429644,0.40973,2441.7,2441.6,3.61755]
[1730736429839,3.19814002,2442.3,2441.6,7.303]
[1730736429840,1.0241,2442.3,2441.6,7.303]
[1730736430042,0.40971,2441.9,2441.8,0.4097]
[1730736431553,1.02417,2442.1,2441.7,0.40972]
[1730736431554,0.40972,2441.8,2441.7,0.40972]
[1730736431739,0.40973,2441.7,2441.6,3.61754]
[1730736432152,0.40973,2441.8,2441.7,0.40972]
[1730736432652,0.40973,2441.7,2441.6,3.61754]
[1730736433542,0.40973,2441.7,2441.6,3.2078]
[1730736433752,1.0814,2441.8,2441.6,3.2078]
[1730736433954,0.40973,2441.7,2441.6,3.2078]
[1730736434156,0.40973,2441.7,2441.6,3.61755]
[1730736434452,0.40973,2441.7,2441.6,3.2078]
[1730736434651,0.40973,2441.7,2441.6,3.61755]
[1730736436248,4.0952,2441.7,2441.4,3.2078]
[1730736436453,1.02446,2441.4,2441.0,0.61684]
[1730736436751,0.40981,2441.3,2441.2,0.4098]
[1730736436957,41.20981,2441.3,2441.2,0.4098]
[1730736437256,0.40981,2441.2,2441.1,1.0545]
[1730736437750,0.40981,2441.2,2440.9,3.2078]
[1730736437751,0.40985,2441.0,2440.9,3.2078]
[1730736437955,5.26990002,2441.2,2440.8,1.08702]
[1730736438157,0.40986,2441.0,2440.9,0.40985]
[1730736440550,0.40986,2440.9,2440.8,4.70469]
[1730736440853,0.40986,2440.9,2440.8,4.29482]
[1730736441060,0.40986,2440.9,2440.8,4.7047]
[1730736441654,40.8,2441.3,2441.2,0.40981]
[1730736441849,0.4098,2441.4,2441.3,0.40978]
[1730736442355,41.2098,2441.4,2441.3,0.40978]
[1730736442752,41.2098,2441.4,2441.3,1.34798]
[1730736442952,40.8,2441.4,2441.3,1.34798]
[1730736443157,0.40977,2441.6,2441.5,0.40975]
[1730736443346,0.40978,2441.5,2441.4,3.61757]
[1730736444250,0.40978,2441.5,2441.4,3.2078]
[1730736445756,0.40978,2441.4,2441.3,1.34799]
[1730736446652,0.40978,2441.4,2441.3,0.9382]
[1730736446852,0.4098,2441.3,2441.2,4.27764321]
[1730736447055,0.40983,2441.1,2441.0,0.9959]
[1730736447445,41.20983,2441.1,2441.0,0.9959]
[1730736448048,41.20983,2441.1,2441.0,1.40575]
[1730736450056,41.20983,2441.1,2441.0,0.9959]
[1730736451151,51.04319,2441.1,2440.7,1.06984321]
[1730736451355,51.04319,2441.1,2439.9,1.06984321]
[1730736451356,2.04961,2440.6,2439.9,1.06984321]
[1730736451555,0.41005,2439.8,2439.7,1.0077]
[1730736451853,0.41005,2439.8,2439.7,1.41777]
[1730736452058,3.19814002,2440.0,2439.4,1.06984321]
[1730736452059,0.41008,2439.6,2439.4,1.06984321]
[1730736452274,0.41008,2439.6,2439.3,1.604814]
[1730736452275,0.41012,2439.4,2439.3,1.0077]
[1730736452757,3.60826002,2439.4,2439.3,1.0077]
[1730736453957,3.58151002,2439.4,2439.3,1.0077]
[1730736455454,0.38337,2439.4,2439.3,1.0077]
[1730736455855,3.93916291,2439.5,2439.1,3.2078]
[1730736456063,0.41014,2439.3,2439.1,3.61795]
[1730736456258,0.41015,2439.2,2439.1,3.2078]
[1730736456466,40.8,2439.4,2439.1,3.2078]
[1730736456657,0.41014,2439.3,2439.2,0.41015]
[1730736457062,40.8,2439.4,2439.3,0.41013]
[1730736457560,40.8,2439.4,2439.1,3.2078]
[1730736457764,40.8,2439.4,2439.3,0.41013]
[1730736458262,40.8,2439.4,2439.1,3.2078]
[1730736458462,41.21012,2439.4,2439.1,3.2078]
[1730736458660,0.41012,2439.4,2439.3,0.41013]
[1730736459062,4.91436291,2439.8,2439.1,3.2078]
[1730736459363,0.41012,2439.4,2439.3,0.41013]
[1730736460257,0.41011,2439.5,2439.4,0.41011]
[1730736460462,0.41009,2439.6,2439.4,3.6179]
[1730736460964,0.4101,2439.5,2439.4,3.2078]
[1730736461656,0.4101,2439.5,2439.4,3.61792]
[1730736461856,4.91436291,2439.8,2439.4,3.2078]
[1730736462052,0.41001,2440.1,2439.5,6.0621]
[1730736462370,0.41002,2440.0,2439.9,0.41002]
[1730736462756,0.41002,2440.0,2439.8,3.61784]
[1730736463065,0.41002,2440.0,2439.9,0.41003]
[1730736463265,0.41002,2440.0,2439.8,3.2078]
[1730736463460,3.93916291,2440.4,2439.8,3.2078]
[1730736463655,0.41003,2439.9,2439.8,3.2078]
[1730736464360,4.50843,2439.9,2439.8,3.2078]
[1730736464770,0.41003,2439.9,2439.8,3.2078]
[1730736465668,3.93916291,2440.1,2439.8,3.2078]
[1730736465966,0.41003,2439.9,2439.8,3.2078]
[1730736466164,41.21003,2439.9,2439.8,3.2078]
[1730736468174,0.41008,2439.6,2439.5,2.37299]
[1730736468472,0.41008,2439.7,2439.5,9.67999]
[1730736468664,0.41008,2439.7,2439.5,5.58079]
[1730736468864,0.41008,2439.6,2439.5,5.58079]
[1730736469071,40.8,2439.9,2439.5,5.58079]
[1730736469266,0.41008,2439.7,2439.6,0.41008]
[1730736469770,40.8,2439.9,2439.5,5.58079]
[1730736469967,41.21004,2439.9,2439.8,0.41005]
[1730736470165,0.41001,2440.1,2440.0,0.41001]
[1730736470365,3.93916291,2440.3,2439.8,3.2078]
[1730736470571,0.41003,2440.0,2439.9,0.41003]
[1730736471072,5.47321233,2440.8,2440.3,0.40995]
[1730736471073,0.40995,2440.4,2440.3,0.40995]
[1730736471268,4.96379291,2441.0,2440.3,4.0976]
[1730736471475,3.93916291,2440.7,2439.9,1.02507]
[1730736471672,0.41003,2440.0,2439.9,0.41003]
[1730736471875,0.40997,2440.3,2440.2,0.40998]
[1730736472165,0.40997,2440.3,2440.2,0.36870745]
[1730736475273,4.50757,2440.3,2440.2,0.36870745]
[1730736475777,45.30757,2440.3,2440.2,0.36870745]
[1730736475964,45.30757,2440.3,2439.7,0.41006]
[1730736475965,0.41003,2439.9,2439.6,2.40267]
[1730736476167,1.02501,2440.1,2439.6,2.40267]
[1730736476168,0.41007,2439.7,2439.6,2.40267]
[1730736476662,1.02507,2440.0,2439.6,0.9797]
[1730736476863,0.41006,2439.8,2439.7,0.41006]
[1730736477075,0.41004,2439.9,2439.8,0.41004]
[1730736477274,41.21004,2439.9,2439.8,0.41004]
[1730736477471,0.41005,2439.8,2439.7,0.41006]
[1730736478875,0.41007,2439.7,2439.6,1.38977]
[1730736479177,40.8,2439.9,2439.6,0.9797]
[1730736479475,40.8,2439.9,2439.6,1.38977]
[1730736479476,0.41007,2439.7,2439.6,1.38977]
[1730736480472,41.21005,2439.9,2439.8,0.41005]
[1730736480676,40.8,2439.9,2439.8,0.41005]
[1730736480973,3.19982918,2440.2,2439.7,4.1728]
[1730736481271,41.21001,2440.1,2440.0,0.41001]
[1730736481478,41.21,2440.1,2440.0,0.41001]
[1730736482471,40.8,2440.1,2440.0,0.41001]
[1730736483176,41.21,2440.1,2440.0,0.41001]
[1730736484267,40.8,2440.1,2440.0,0.41001]
[1730736484879,41.21,2440.1,2440.0,0.41001]
[1730736485066,43.99982918,2440.1,2439.8,0.41003]
[1730736485266,43.99982918,2440.1,2439.7,4.1728]
[1730736485677,0.41002,2440.0,2439.9,0.41002]
[1730736486174,43.99982918,2440.1,2440.0,0.41002]
[1730736486175,40.8,2440.1,2440.0,0.41002]
[1730736486578,41.21,2440.1,2440.0,0.41002]
[1730736486973,40.8,2440.1,2440.0,0.41002]
[1730736487172,1.22981,2440.6,2440.0,7.3062]
[1730736487173,0.205,2440.6,2440.0,7.3062]
[1730736487379,0.40996,2440.4,2440.3,0.40996]
[1730736487781,41.20996,2440.4,2440.3,3.61776]
[1730736488171,41.20996,2440.4,2440.3,0.40996]
[1730736488886,40.8,2440.4,2440.3,0.40996]
[1730736489580,40.8,2440.4,2440.3,3.61776]
[1730736490480,40.8,2440.4,2440.3,0.40996]
[1730736490679,40.8,2440.4,2440.3,3.61776]
[1730736490881,41.20995,2440.4,2440.3,3.2078]
[1730736491077,0.40998,2440.2,2440.1,5.1692]
[1730736491277,0.40998,2440.2,2440.1,1.9614]
[1730736491485,0.40998,2440.2,2440.1,2.3714]
[1730736492081,40.8,2440.4,2440.1,9.2676]
[1730736492287,0.40998,2440.3,2440.2,0.40997]
[1730736494288,40.8,2440.4,2440.1,5.1692]
[1730736494486,41.20995,2440.4,2440.3,0.40996]
[1730736495681,40.8,2440.4,2440.3,0.40996]
[1730736496296,41.20995,2440.4,2440.3,0.40996]
[1730736496684,40.8,2440.4,2440.3,3.61776]
[1730736496998,0.40994,2440.5,2440.4,0.40993]
[1730736497500,0.40993,2440.6,2440.5,0.40992]
[1730736497684,0.40995,2440.5,2440.4,0.40993]
[1730736498200,41.20995,2440.5,2440.4,0.40993]
[1730736499295,0.40998,2440.2,2440.1,3.03124321]
[1730736499500,0.40998,2440.2,2440.1,4.1549]
[1730736499697,0.40998,2440.2,2440.1,4.5649]
[1730736500196,0.40997,2440.4,2440.3,0.40996]
[1730736500396,0.40997,2440.4,2440.3,0.40995]
[1730736500698,0.40996,2440.3,2440.2,1.41917]
[1730736501193,0.40996,2440.4,2440.3,0.40995]
[1730736501498,0.40996,2440.3,2440.2,1.41917]
[1730736502099,40.8,2440.5,2440.4,0.40995]
[1730736502295,40.8,2440.5,2440.4,6.06988576]
[1730736502494,40.8,2440.5,2440.4,8.78519321]
[1730736502690,40.8,2440.5,2440.3,1.47979321]
[1730736502893,40.8,2440.5,2440.2,2.07904321]
[1730736503193,0.40996,2440.4,2440.3,0.40995]
[1730736503900,0.40996,2440.3,2440.2,4.62696]
[1730736504401,0.40996,2440.3,2440.2,3.2078]
[1730736506802,4.50756,2440.3,2440.2,3.2078]
[1730736508194,0.40996,2440.3,2440.2,3.2078]
[1730736508796,4.0976,2440.3,2440.1,1.06984321]
[1730736508995,0.41002,2440.0,2439.9,1.604814]
[1730736509195,4.23282,2440.1,2439.7,2.67469]
[1730736509394,3.2078,2439.8,2439.4,3.209628]
[1730736509595,0.4101,2439.5,2439.4,3.209628]
[1730736510102,5.5065,2439.5,2439.4,3.619748]
[1730736510296,46.3065,2439.5,2439.4,3.209628]
[1730736511499,45.8964,2439.5,2439.2,0.41014]
[1730736511700,0.41013,2439.3,2439.2,0.41014]
[1730736511904,0.41013,2439.3,2439.1,3.2078]
[1730736511905,0.41015,2439.2,2439.1,3.2078]
[1730736512496,0.41022,2438.8,2438.7,3.2078]
[1730736512699,0.41022,2438.8,2438.3,3.209628]
[1730736512700,0.41027,2438.5,2438.4,1.9917]
[1730736514000,0.9744,2438.7,2438.3,4.206728]
[1730736514196,0.41028,2438.5,2438.3,4.206728]
[1730736514497,0.9744,2438.7,2438.3,4.617028]
[1730736514703,0.41028,2438.5,2438.3,4.617028]
[1730736514902,0.41028,2438.5,2438.4,0.41028]
[1730736515101,0.9744,2438.7,2438.3,4.206728]
[1730736515505,0.41028,2438.5,2438.3,4.617018]
[1730736515801,40.8,2438.4,2438.3,4.617018]
[1730736516011,41.21028,2438.4,2438.3,4.206728]
[1730736516199,41.21028,2438.4,2438.3,4.617028]
[1730736516697,41.21028,2438.4,2438.3,0.9971]
[1730736516894,44.9008,2438.4,2438.1,0.9736]
[1730736517093,40.8,2438.4,2438.2,0.41031]
[1730736517293,0.41031,2438.3,2438.1,1.38392]
[1730736518198,0.41031,2438.3,2438.1,0.9736]
[1730736518403,41.2103,2438.4,2438.2,0.41031]
[1730736518600,0.4103,2438.3,2438.2,0.41031]
[1730736518804,0.4103,2438.4,2438.2,0.41031]
[1730736519004,8.04128269,2438.6,2438.1,0.9736]
[1730736519304,0.41031,2438.3,2438.2,0.41032]
[1730736519604,0.41031,2438.3,2438.1,1.38392]
[1730736519807,0.4103,2438.3,2438.2,0.41031]
[1730736520107,1.38464,2438.7,2438.6,0.41025]
[1730736520411,0.41021,2438.9,2438.8,0.41022]
[1730736520603,41.21021,2438.9,2438.8,0.41022]
[1730736520800,3.94048269,2439.1,2438.5,2.0213]
[1730736520999,5.9672,2439.3,2438.7,3.2078]
[1730736521000,3.2078,2439.3,2438.7,3.2078]
[1730736521296,0.41012,2439.4,2439.3,0.41012]
[1730736521501,0.41014,2439.3,2439.2,0.41015]
[1730736521902,40.8,2439.5,2439.1,2.0095]
[1730736522103,40.8,2439.5,2439.3,0.41012]
[1730736522104,0.41012,2439.4,2439.3,0.41012]
[1730736522305,40.8,2439.5,2439.3,0.41012]
[1730736522501,0.41012,2439.4,2439.2,0.41015]
[1730736522802,1.02538,2439.2,2438.6,3.2078]
[1730736523004,0.41029,2438.4,2438.2,0.41031]
[1730736523300,4.96610269,2438.7,2438.4,0.41028]
[1730736523301,0.41026,2438.6,2438.4,0.41028]
[1730736523510,0.41026,2438.6,2438.5,0.9893]
[1730736524610,0.41026,2438.6,2438.0,3.2078]
[1730736524611,0.41031,2438.3,2438.0,3.2078]
[1730736524909,0.41031,2438.3,2438.1,0.946]
[1730736525106,0.41032,2438.2,2438.1,0.946]
[1730736525410,0.41032,2438.2,2438.1,1.35633]
[1730736527214,0.41031,2438.3,2438.2,0.41031]
[1730736528007,40.8,2438.6,2438.3,0.41029]
[1730736528211,0.41027,2438.5,2438.4,1.40888]
[1730736528406,41.21026,2438.6,2438.5,0.41027]
[1730736528714,0.41023,2438.8,2438.7,0.41022]
[1730736529116,41.21023,2438.8,2438.7,0.41022]
[1730736529694,3.2078,2439.1,2438.8,0.41022]
[1730736529844,0.41018,2439.0,2438.9,0.9986]
[1730736530132,3.2078,2439.1,2438.9,0.9986]
[1730736530133,40.8,2439.1,2438.9,0.9986]
[1730736530343,0.41015,2439.2,2439.1,0.41016]
[1730736530530,3.2078,2439.4,2439.0,1.43287]
[1730736530531,0.41017,2439.1,2439.0,1.43287]
[1730736530731,0.41015,2439.2,2439.1,0.41016]
[1730736531335,40.8,2439.4,2439.0,1.0227]
[1730736531537,40.8,2439.4,2439.3,3.61793]
[1730736531747,40.8,2439.4,2439.3,7.71713]
[1730736532040,0.42968,2439.8,2439.7,0.41007]
[1730736532230,0.01963,2439.8,2439.7,0.41007]
[1730736532442,40.81963,2439.8,2439.7,0.41007]
[1730736532630,40.81963,2439.8,2439.7,1.31887]
[1730736533233,41.22968,2439.8,2439.7,0.9088]
[1730736533439,40.81963,2439.8,2439.7,0.9088]
[1730736533632,0.01963,2439.8,2439.7,5.41727]
[1730736533826,0.41,2440.1,2440.0,0.41002]
[1730736534034,7.14828269,2440.5,2439.9,3.2078]
[1730736534320,4.14548269,2440.8,2440.3,0.40995]
[1730736534624,2.04895,2441.4,2440.5,3.2078]
[1730736534625,3.94048269,2441.1,2440.5,3.2078]
[1730736534814,0.40987,2440.9,2440.7,0.40989]
[1730736535014,3.94048269,2441.1,2440.5,3.2078]
[1730736535216,3.94048269,2441.3,2440.5,3.2078]
[1730736535524,0.40985,2441.0,2440.5,3.2078]
[1730736535711,3.94048269,2441.3,2440.9,0.40986]
[1730736535914,3.94048269,2441.3,2441.0,0.40985]
[1730736536116,40.8,2441.2,2441.0,0.40985]
[1730736536313,0.40983,2441.1,2440.9,0.40985]
[1730736536514,41.20983,2441.2,2441.0,0.40984]
[1730736536715,40.8,2441.2,2440.9,0.40985]
[1730736536925,40.8,2441.2,2440.8,3.2078]
[1730736537126,40.8,2441.2,2441.1,0.40983]
[1730736538532,0.61472,2441.8,2441.5,0.40976]
[1730736538723,3.94048269,2442.2,2441.4,3.2078]
[1730736538926,40.8,2442.1,2441.9,0.40969]
[1730736539126,40.8,2442.1,2441.7,3.2078]
[1730736539333,41.20967,2442.1,2441.9,0.4097]
[1730736539514,41.20967,2442.1,2441.8,0.4097]
[1730736539721,41.20967,2442.1,2441.9,0.40969]
[1730736539921,41.20967,2442.1,2441.7,3.2078]
[1730736540122,0.40968,2442.0,2441.8,0.4097]
[1730736540428,41.20967,2442.1,2441.8,0.40971]
[1730736540725,0.40968,2442.0,2441.8,0.40971]
[1730736540929,41.20967,2442.1,2441.7,3.2078]
[1730736541223,40.8,2442.1,2441.7,3.2078]
[1730736541428,41.20967,2442.1,2441.8,0.4097]
[1730736541813,41.20967,2442.1,2441.9,0.9119]
[1730736541814,40.8,2442.1,2441.9,0.9119]
[1730736542014,41.20967,2442.1,2441.9,0.9119]
[1730736542520,41.20966,2442.1,2441.9,4.52939]
[1730736542714,41.20966,2442.1,2441.9,4.1197]
[1730736543325,40.8,2442.1,2441.9,0.9119]
[1730736543726,40.8,2442.1,2442.0,0.40968]
[1730736545827,40.8,2442.1,2441.9,1.8077]
[1730736546037,40.8,2442.1,2442.0,0.40968]
[1730736548229,0.40965,2442.2,2442.0,0.40968]
[1730736549225,40.8,2442.1,2441.9,2.6809]
[1730736549730,41.20967,2442.1,2441.9,3.09059]
[1730736549925,40.8,2442.1,2442.0,0.40968]
[1730736551029,40.8,2442.1,2442.0,4.50488]
[1730736551328,0.205,2442.8,2442.7,0.40956]
[1730736551528,3.4128,2443.5,2443.0,0.40951]
[1730736551529,0.22232494,2443.5,2443.0,0.40951]
[1730736551732,41.20946,2443.4,2443.2,0.40947]
[1730736551939,0.40946,2443.3,2443.2,0.40947]
[1730736552122,40.8,2443.4,2443.0,3.2078]
[1730736552622,40.8,2443.4,2443.1,0.40949]
[1730736552623,0.40949,2443.2,2443.1,0.40949]
[1730736553222,0.4095,2443.1,2443.0,3.2078]
[1730736553423,1.02371,2443.2,2442.9,3.2078]
[1730736553634,0.40951,2443.0,2442.9,3.2078]
[1730736554832,0.40953,2442.9,2442.8,1.7298]
[1730736556430,1.02372,2443.2,2442.7,3.2078]
[1730736556630,0.40955,2442.8,2442.7,3.2078]
[1730736557822,1.02383,2442.9,2442.6,3.2078]
[1730736558128,0.4096,2442.5,2442.4,3.2078]
[1730736559236,41.2096,2442.5,2442.4,3.2078]
[1730736559836,1.02404,2442.4,2442.1,3.2078]
[1730736560127,1.02404,2442.4,2441.9,2.20949]
[1730736560326,0.40965,2442.2,2442.1,3.2078]
[1730736560926,4.50405,2442.2,2442.1,3.2078]
[1730736561533,0.40973,2441.7,2441.6,0.8924]
[1730736561837,0.40975,2441.6,2441.5,4.53256]
[1730736562039,1.02421,2442.0,2441.5,4.1228]
[1730736562229,0.40975,2441.6,2441.5,4.53255]
[1730736563632,0.40975,2441.6,2441.5,4.1228]
[1730736563932,0.40975,2441.6,2441.5,3.2078]
[1730736564234,1.02426,2441.9,2441.4,0.8722]
[1730736564538,0.4098,2441.3,2441.2,3.61761]
[1730736565029,0.40976,2441.6,2441.5,0.40976]
[1730736565232,0.40971,2441.9,2441.8,0.4097]
[1730736565431,0.40972,2441.8,2441.7,0.40972]
[1730736566130,0.40973,2441.7,2441.6,0.9376]
[1730736566537,0.40973,2441.7,2441.6,5.0328]
[1730736566937,0.40973,2441.7,2441.6,0.9376]
[1730736567237,0.40975,2441.6,2441.5,0.8635]
[1730736567628,0.40975,2441.6,2441.5,8.57706]
[1730736567941,0.40975,2441.6,2441.5,4.48106]
[1730736568136,4.0743,2442.0,2441.5,4.0713]
[1730736568337,4.0743,2442.0,2441.6,0.40974]
[1730736568338,0.40974,2441.7,2441.6,0.40974]
[1730736568555,0.40973,2441.8,2441.7,0.40971]
[1730736568741,0.4097,2441.9,2441.7,0.40972]
[1730736569042,0.40973,2441.8,2441.7,0.40972]
[1730736569238,3.2078,2442.0,2441.5,4.0713]
[1730736569649,0.40972,2441.8,2441.7,0.40972]
[1730736571740,5.19758269,2442.4,2441.6,3.2078]
[1730736572040,1.02418,2442.1,2441.5,0.8635]
[1730736572247,0.40974,2441.7,2441.6,0.40973]
[1730736572644,0.40973,2441.8,2441.7,0.40972]
[1730736572845,1.02418,2442.1,2441.5,0.8635]
[1730736573142,0.4097,2441.9,2441.8,3.2078]
[1730736573439,8.01478269,2442.4,2441.8,3.2078]
[1730736573644,0.4097,2441.9,2441.8,3.2078]
[1730736574940,1.02417,2442.1,2441.8,3.2078]
[1730736575137,1.02417,2442.1,2441.8,3.61751]
[1730736575138,0.4097,2441.9,2441.8,3.61751]
[1730736575437,0.4097,2441.9,2441.8,3.2078]
[1730736579539,0.40968,2442.0,2441.8,3.2078]
[1730736579744,0.4097,2441.9,2441.8,3.2078]
[1730736580534,0.40973,2441.7,2441.6,1.9937164]
[1730736580734,0.40973,2441.7,2441.6,3.32892366]
[1730736581144,0.40973,2441.7,2441.6,3.32895263]
[1730736581346,0.40973,2441.7,2441.6,6.12701263]
[1730736581546,0.40973,2441.7,2441.4,1.5839764]
[1730736581547,7.29248603,2441.7,2441.4,1.5839764]
[1730736581739,0.40978,2441.4,2441.3,3.2078]
[1730736581941,0.40978,2441.4,2441.3,4.54372733]
[1730736582141,41.20978,2441.4,2441.3,6.12770373]
[1730736582943,41.20978,2441.4,2441.3,6.53750373]
[1730736583346,40.8,2441.4,2441.3,6.53750373]
[1730736583951,41.20978,2441.4,2441.3,6.53750373]
[1730736584348,0.883,2441.8,2441.3,6.12770373]
[1730736584546,4.22154603,2441.9,2441.5,0.40975]
[1730736584547,0.40976,2441.6,2441.5,0.40975]
[1730736584749,0.40976,2441.6,2441.5,1.28105]
[1730736584938,41.20976,2441.6,2441.5,0.8713]
[1730736585148,41.20976,2441.6,2441.5,1.28106]
[1730736585642,41.20976,2441.6,2441.5,0.8713]
[1730736588550,0.40978,2441.4,2441.3,3.2078]
[1730736588752,41.82439,2441.6,2441.3,3.2078]
[1730736589050,0.40978,2441.4,2441.3,3.2078]
[1730736590647,0.40978,2441.4,2441.3,3.6176]
[1730736591339,0.40978,2441.5,2441.4,0.40977]
[1730736591541,0.40978,2441.5,2441.3,3.2078]
[1730736591542,0.40978,2441.4,2441.3,3.61758]
[1730736593647,0.40978,2441.5,2441.4,0.40977]
[1730736595645,0.40978,2441.4,2441.3,3.61759]
[1730736597656,0.40978,2441.4,2441.3,3.2078]
[1730736599155,0.40978,2441.4,2441.3,3.6176]
[1730736600252,0.40978,2441.4,2441.3,3.2078]
[1730736600853,0.40978,2441.4,2441.3,3.6176]
[1730736601249,0.40978,2441.4,2441.3,3.2078]
[1730736602259,0.40978,2441.4,2441.2,0.9163]
[1730736602260,0.4098,2441.3,2441.2,0.9163]
[1730736602656,0.40983,2441.1,2441.0,3.2078]
[1730736602853,1.02458,2441.2,2440.8,0.40987]
[1730736603055,0.40987,2441.0,2440.9,0.94092648]
[1730736603255,4.22176603,2441.4,2440.9,3.73886648]
[1730736603455,0.40983,2441.2,2441.1,0.40982]
[1730736603655,0.40983,2441.2,2441.1,3.61762]
[1730736604061,0.4098,2441.4,2441.3,0.40978]
[1730736604562,0.40978,2441.5,2441.4,0.40976]
[1730736604755,0.4098,2441.4,2441.3,0.40979]
[1730736605358,0.40978,2441.5,2441.4,0.40976]
[1730736606069,0.40978,2441.5,2441.4,4.15232413]
[1730736606762,40.8,2441.6,2441.4,3.74256413]
[1730736606968,40.8,2441.6,2441.5,0.94451839]
[1730736607261,0.40974,2441.7,2441.6,0.40975]
[1730736607665,41.20974,2441.7,2441.6,0.40975]
[1730736607967,0.40976,2441.6,2441.5,0.40975]
[1730736608161,0.40976,2441.6,2441.5,0.94458777]
[1730736608461,41.20974,2441.7,2441.6,0.40975]
[1730736609165,0.40976,2441.6,2441.5,0.40975]
[1730736609362,40.8,2441.7,2441.6,0.40975]
[1730736609558,40.8,2441.7,2441.5,0.53484716]
[1730736609864,40.8,2441.7,2441.4,4.7917764]
[1730736609865,41.20973,2441.7,2441.6,0.53485606]
[1730736610067,0.40976,2441.5,2441.4,3.2078]
[1730736610258,0.40976,2441.5,2441.4,0.53487017]
[1730736610665,42.68415,2441.7,2441.3,0.8675]
[1730736610963,0.40978,2441.4,2441.3,1.27728]
[1730736611160,0.40978,2441.4,2441.3,1.81218009]
[1730736611356,42.68415,2441.7,2441.3,1.40240009]
[1730736611568,0.40977,2441.6,2441.5,0.40975]
[1730736613472,40.8,2441.7,2441.3,0.8675]
[1730736613672,0.40976,2441.6,2441.5,0.40975]
[1730736614564,41.82433,2441.7,2441.3,0.8675]
[1730736614768,0.40978,2441.4,2441.3,1.27728]
[1730736614973,0.40978,2441.4,2441.3,1.8122103]
[1730736615176,0.40978,2441.4,2441.3,5.9082103]
[1730736615465,0.40978,2441.4,2441.3,1.8122303]
[1730736615671,0.40978,2441.4,2441.3,5.4984303]
[1730736615967,0.40978,2441.4,2441.3,1.4024303]
[1730736616160,0.40978,2441.4,2441.3,1.2773]
[1730736616362,0.40978,2441.4,2441.3,1.81564836]
[1730736616572,0.40978,2441.4,2441.3,2.68854836]
[1730736616871,0.40978,2441.4,2441.3,2.27874836]
[1730736617168,0.40978,2441.4,2441.3,2.68854836]
[1730736617869,0.40978,2441.4,2441.3,2.27874836]
[1730736618168,0.40978,2441.4,2441.1,3.2078]
[1730736618169,3.19728603,2441.4,2441.1,3.2078]
[1730736618368,0.40981,2441.2,2441.1,3.2078]
[1730736618777,3.60709603,2441.2,2441.1,3.2078]
[1730736619971,0.40981,2441.2,2441.1,0.40983]
[1730736620163,0.40981,2441.2,2441.1,3.2078]
[1730736620369,0.40981,2441.2,2441.1,3.61763]
[1730736620663,0.40981,2441.2,2441.1,3.2078]
[1730736621467,0.40981,2441.2,2441.1,3.61763]
[1730736621670,7.78443223,2441.6,2441.1,7.84292029]
[1730736621671,4.08078603,2441.6,2441.1,7.84292029]
[1730736621872,4.08078603,2441.6,2441.2,0.40981]
[1730736621873,0.40981,2441.3,2441.2,0.40981]
[1730736622562,1.02442,2441.5,2441.1,3.61762]
[1730736622563,0.40981,2441.2,2441.1,3.61762]
[1730736622765,0.40981,2441.2,2441.1,3.74616344]
[1730736622974,0.40981,2441.2,2441.1,3.2078]
[1730736623378,0.40981,2441.2,2441.1,3.74621561]
[1730736623876,9.95730826,2441.6,2441.1,3.74621561]
[1730736624073,0.40979,2441.4,2441.3,0.40978]
[1730736624281,0.40976,2441.6,2441.2,1.02453]
[1730736624477,0.40976,2441.6,2441.5,0.40976]